Cogmind - Beta 10.1 @@@ ROGUE MODE // 2020.10.20 @ 11:49:54 Player: Trollpotato Result: Destroyed by G-47 Trooper with Particle Gun Performance ------------- Evolutions (0) 0 Regions Visited (1) 200 Robots Destroyed (24) 120 Value Destroyed (549) 549 Prototype IDs (0) 0 Alien Tech Used (0) 0 Bonus (0) 0 TOTAL SCORE: 869 Bonus ------- None Cogmind --------- Core Integrity 0/250 Matter 300/300 Energy 230/250 System Corruption 0% Temperature Cool (96) Movement Rolling (110) Ox1 Location -10/Materials Parts ------- > --- POWER (1) -------- Ion Engine > --- PROPULSION (2) --- Compact Wheel Compact Wheel > --- UTILITY (2) ------ Large Storage Unit Large Storage Unit > --- WEAPON (2) ------- EM Shotgun EM Shotgun > --- INVENTORY (16) --- Ion Engine Light Nuclear Core Improved Treads Improved Treads Improved Treads Improved Treads Wheel Wheel Large Storage Unit Signal Interpreter Targeting Computer Hacking Suite EM Shotgun EM Shotgun Grenade Launcher Hammer Peak State ------------ > --- POWER ------------ Ion Engine > --- PROPULSION ------- Compact Wheel Compact Wheel > --- UTILITY ---------- Large Storage Unit Large Storage Unit > --- WEAPON ----------- EM Shotgun EM Shotgun > --- INVENTORY -------- Ion Engine Light Nuclear Core Light Treads Light Treads Aluminum Leg Aluminum Leg Wheel Small Storage Unit Large Storage Unit Signal Interpreter Targeting Computer Hacking Suite EM Shotgun Grenade Launcher Hammer [Rating: 11] Favorites ----------- Power Ion Engine Engine Ion Engine Propulsion Compact Wheel Wheel Compact Wheel Utility Large Storage Unit Storage Large Storage Unit Weapon EM Pulse Gun Energy Gun EM Pulse Gun Ballistic Gun Light Assault Rifle Impact Weapon Hammer Build | -11 -10 ------- Run | Scr Mat Slots Evolved . | . . Power . | . . Propulsion . | . . Utility . | . . Weapon . | . . Parts Attached 23 | 7 16 Power 2 | 1 1 Engine 2 | 1 1 Core . | . . Reactor . | . . Propulsion 9 | 2 7 Treads . | . . Leg . | . . Wheel 9 | 2 7 Hover . | . . Flight . | . . Utility 3 | 1 2 Device . | . . Storage 3 | 1 2 Processor . | . . Hackware . | . . Protection . | . . Artifact . | . . Weapon 9 | 3 6 Energy Gun 6 | 2 4 Energy Cannon . | . . Ballistic Gun 2 | 1 1 Ballistic Cannon . | . . Launcher . | . . Special Weapon . | . . Impact Weapon 1 | . 1 Slashing Weapon . | . . Piercing Weapon . | . . Special Melee Weapon . | . . Unidentified Prototypes . | . . Parts Lost 7 | . 7 Power . | . . Propulsion 2 | . 2 Utility . | . . Weapon 5 | . 5 Highest Loss Streak 3 | . 3 Average Slot Usage (%) 99 | . 99 Engine 14 | . 14 Wheel 27 | . 27 Storage 27 | . 27 Energy Gun 19 | . 19 Ballistic Gun 7 | . 7 Naked Turns . | . . Heaviest Build 43 | 11 43 Greatest Support 32 | 26 32 Greatest Overweight (x) 2 | . 2 Average Overweight (x) . | . 1 Largest Inventory Capacity 16 | 6 16 Average Capacity 15 | 5 15 Most Carried 16 | 6 16 Average Carried 12 | 3 13 Final Capacity 16 | 6 16 Final Carried 16 | 6 16 Class Distribution -------------------- 96% | Mutant 3% | Scavenger-Mutant Dominant Class ---------------- Mutant | -10/Materials Resources | -11 -10 ----------- Run | Scr Mat Matter Collected 453 | 214 239 Remotely . | . . Salvage Created 1113 | . 1113 Parts 53 | . 53 Haulers Intercepted 2 | . 2 Recyclers Shooed 3 | . 3 Parts Field Recycled . | . . Retrieved Matter . | . . Parts Self-Destructed . | . . Prevented . | . . Kills | -11 -10 ------- Run | Scr Mat Combat Hostiles Destroyed 11 | . 11 Guns 8 | . 8 AOE 1 | . 1 Classes Destroyed 7 | . 7 Worker 1 | . 1 Tunneler 1 | . 1 Hauler 2 | . 2 Recycler 4 | . 4 Operator 2 | . 2 Watcher 3 | . 3 Grunt 11 | . 11 Best Kill Streak 3 | . 3 Combat Bots Only 2 | . 2 Max Kills in Single Turn 2 | . 2 Gunslinging . | . . Exploded 1 | . 1 Melee . | . . Uniques/NPCs Destroyed . | . . Combat | -11 -10 -------- Run | Scr Mat Damage Taken 867 | . 867 Core 261 | . 261 Absorbed by Shields . | . . Core Remaining (%) 100 | 100 . Volleys Fired 77 | 5 72 Largest 2 | 1 2 Hottest 90 | 50 90 Shots Fired 137 | 5 132 Gun 137 | 5 132 Cannon . | . . Launcher . | . . Special . | . . Kinetic 38 | . 38 Thermal 22 | 5 17 Explosive . | . . Electromagnetic 77 | . 77 Robot Hit Streak 11 | 2 11 Robot Miss Streak 3 | 2 3 Penetration Max . | . . Secondary Targets . | . . Shots Hit Robots 98 | 3 95 Core Hits 41 | . 41 Critical Hits . | . . Critical Kills . | . . Critical Parts Destroyed . | . . Melee Attacks 6 | . 6 Impact 6 | . 6 Slashing . | . . Piercing . | . . Sneak Attacks . | . . Combat Hostiles . | . . Follow-up Attacks . | . . Damage Inflicted 1570 | 38 1532 Guns 1169 | 38 1131 Cannons . | . . Explosions 269 | . 269 Melee 127 | . 127 Ramming 5 | . 5 Kinetic 154 | . 154 Thermal 404 | 38 366 Explosive . | . . Electromagnetic 880 | . 880 Impact 127 | . 127 Slashing . | . . Piercing . | . . Highest Corruption . | . . Average Corruption . | . . Corruption Purged . | . . Overload Shots . | . . Overflow Damage 29 | . 29 Projectiles . | . . Explosions 16 | . 16 Melee 13 | . 13 Knockbacks . | . . Impact . | . . Kinetic . | . . Secondary . | . . Self-Inflicted Damage 55 | . 55 Shots 2 | . 2 Rammed 1 | . 1 Targets Rammed 1 | . 1 Kicked . | . . Crushed . | . . Highest Temperature 347 | 50 347 Average Temperature 71 | 26 74 Received Heat Transfer 474 | . 474 Effects 1 | . 1 Shutdowns 1 | . 1 Siege Activations . | . . Robots Corrupted 2 | . 2 Combat Hostiles 2 | . 2 Parts Fried 2 | . 2 Impact Corruptions 2 | . 2 Robots Melted . | . . Combat Hostiles . | . . Parts Melted 1 | . 1 Heat Transferred 683 | 111 572 Parts Sabotaged . | . . Parts Stolen . | . . Parts Stripped . | . . Power Chain Reactions 4 | . 4 Missiles Intercepted . | . . Alert | -11 -10 ------- Run | Scr Mat Peak Influence 184 | . 184 Initial . | . . Average 79 | . 83 Maximum Alert Level . | . . Low Security (%) 100 | 100 100 Level 1 . | . . Level 2 . | . . Level 3 . | . . Level 4 . | . . Level 5 . | . . High Security . | . . Max Security . | . . Squads Dispatched 3 | . 3 Investigation 1 | . 1 Extermination . | . . Reinforcement 2 | . 2 Assault . | . . Garrison . | . . Intercept . | . . Construction Impeded . | . . Haulers Reinforced . | . . Stealth | -11 -10 --------- Run | Scr Mat Distress Signals 1 | . 1 Communications Jammed . | . . Distress Signals . | . . Times Spotted 29 | . 29 Peak Tracking Total 2 | . 2 Tactical Retreats 4 | . 4 Traps | -11 -10 ------- Run | Scr Mat Traps Triggered 1 | . 1 Indirectly . | . . Trap Hack Attempts . | . . Triggered . | . . Disarmed . | . . Reprogrammed . | . . Reused . | . . Traps Extracted . | . . Installed . | . . Triggered . | . . Machines | -11 -10 ---------- Run | Scr Mat Machines Disabled 2 | . 2 Max in Single Turn 1 | . 1 Machines Sabotaged . | . . Garrisons Compromised . | . . Overloaded Fab Kills . | . . Fab Network Shutdowns . | . . Hacking | -11 -10 --------- Run | Scr Mat Machines Accessed 7 | . 7 Terminals 6 | . 6 Fabricators . | . . Repair Stations 1 | . 1 Recycling Units . | . . Scanalyzers . | . . Garrison Access . | . . Total Hacks 16 | . 16 Successful 12 | . 12 Failed 4 | . 4 Catastrophic 1 | . 1 Database Lockouts . | . . Manual 12 | . 12 Terminals 14 | . 14 Fabricators . | . . Repair Stations 2 | . 2 Recycling Units . | . . Scanalyzers . | . . Garrison Access . | . . Terminal Hacks 4 | . 4 Record 1 | . 1 Robot Analysis 1 | . 1 Terminal Index 1 | . 1 Registered Components 1 | . 1 Fabricator Hacks . | . . Repair Station Hacks 2 | . 2 Scan Component 1 | . 1 Repair 1 | . 1 Recycling Unit Hacks . | . . Scanalyzer . | . . Garrison Access Hacks . | . . Unauthorized Hacks 6 | . 6 Terminals 6 | . 6 Botnet 6 | . 6 Fabricators . | . . Repair Stations . | . . Recycling Units . | . . Scanalyzers . | . . Garrison Access . | . . Data Cores Recovered . | . . Used . | . . Hacking Detections 7 | . 7 Full Trace Events . | . . Feedback Events . | . . Feedback Blocked . | . . Robot Schematics Acquired . | . . Robots Built . | . . Matter . | . . Time . | . . Total Robot Build Rating . | . . Part Schematics Acquired . | . . Parts Built . | . . Matter . | . . Time . | . . Total Part Build Rating . | . . Parts Repaired 1 | . 1 Time 26 | . 26 Parts Recycled . | . . Recycled Matter . | . . Retrieved Matter . | . . Retrieved Components . | . . Parts Scanalyzed . | . . Part Schematics Acquired . | . . Parts Damaged . | . . Bothacking | -11 -10 ------------ Run | Scr Mat Used RIF Installer . | . . Robots Hacked . | . . Non-combat . | . . Combat . | . . Robot Hacks Applied . | . . Relay Couplers Released . | . . Robots Rewired . | . . Allies Hacked . | . . Hacks Repelled . | . . Allies | -11 -10 -------- Run | Scr Mat Total Allies . | . . Largest Group . | . . Highest-Rated Group . | . . Highest-Rated Ally . | . . Total Orders . | . . Ally Attacks . | . . Total Damage . | . . Kills . | . . Allies Corrupted . | . . Allies Melted . | . . Intel | -11 -10 ------- Run | Scr Mat Robot Analysis Total 1 | . 1 Derelict Logs Recovered . | . . Drone Launches . | . . Drone Recoveries . | . . Exploration | -11 -10 ------------- Run | Scr Mat Turns Passed 1306 | 68 1238 Spaces Moved 870 | 45 825 Core 2 | 2 . Treads . | . . Legs . | . . Wheels 868 | 43 825 Hover . | . . Flight . | . . Fastest Speed 50 | 50 90 Average Speed 105 | 86 106 Slowest Speed 120 | 90 120 Overloaded Moves . | . . Propulsion Burnouts . | . . Robots Hopped . | . . Cave-ins Triggered . | . . Exploration Rate (%) 49 | 5 93 Regions Visited 1 Branch Regions . Pre-discovered Areas . | . . Known Exits Taken . | . . Unknown Exits Taken 1 | 1 . Scrap Searched . | . . Spaces Dug . | . . Terrain Destroyed 13 | . 13 Melee . | . . Projectile . | . . AOE 13 | . 13 Terrain Rammed . | . . Walls Destroyed . | . . Machines Disabled . | . . Actions | -11 -10 --------- Run | Scr Mat Total 1118 | 65 1053 Wait 109 | 3 106 Move 869 | 44 825 Hop . | . . Pick Up 24 | 6 18 Fast Attach 10 | 6 4 Attach 5 | . 5 Detach 1 | . 1 Swap 8 | 1 7 Drop 8 | . 8 Fire 77 | 5 72 Melee 6 | . 6 Ram 1 | . 1 Kick . | . . Crush . | . . Escape Stasis . | . . Rewire . | . . Trap . | . . Miscellaneous . | . . Route ------- -11/Scrapyard -10/Materials (discovered 4 exits: [*Mat x2] / [*Min x2]) History --------- Turn | Location | Event 36 | -11/Scrapyard | Discovered new exit (range 14) 69 | -11/Scrapyard | Entered Materials 178 | -10/Materials | Discovered new exit (range 15) 317 | -10/Materials | Build established: Mutant 457 | -10/Materials | Discovered new exit (range 10) 536 | -10/Materials | Core integrity fell below 50% 595 | -10/Materials | Repaired Com. Wheel 849 | -10/Materials | Discovered new exit (range 6) 1019 | -10/Materials | Core integrity fell below 20% 1041 | -10/Materials | Lost 3 parts (1n2w) 1234 | -10/Materials | Discovered new exit (range 7) 1307 | -10/Materials | Destroyed by G-47 Trooper with Particle Gun Last Messages --------------- 01174_ O-16 Technician destroyed. 01174_ Terminal disabled. 01174_ K-01 Serf destroyed. 01181_ Dropped Sml. Storage Unit. 01182_ Dropped Wheel. 01182_ Acquired Wheel. 01234_ EXIT=FOUND 01240_ Connecting with Terminal... >>Trojan(Botnet) Trojan loaded successfully. Testing... Terminal linked with 5 systems. Awaiting botnet instructions. >>Inventory(Components) Retrieving component inventory records... Found 2 registered component stockpiles: AGL7BEJQ7Q: Utility Shielding SL7OA67QYX: Aluminum Leg Downloaded coordinate data. 01290_ K-01 Serf collects debris. Map ----- +----------------------------------------------------+ | # ##### # **[ """ # ## ## ///#????? | | ############* ## *[ # ## ## // #????? | | #???# =#% ############ ## ## // #????? | | #???# T %+= ############ ## ### #????? | | ????# *# # # ##############????? | | ????# * # # # "" #??????????? | | ????# # %# """ + T #??????????? | | ????# # #= """ # #??????????? | | ????######## %+%"" """ # #### ########???? | | ???????????# %#*"T ###+###??# # #???? | | ????######?# # "" # #??# # #???? | | ????# # # # #??# + #???? | | ????# """ # ########### #??# # #???? | | ????# """ + + ==! #??# #??# # #???? | | ????# """ #^ # =%| #??# #??# + #???? | | ????# + # *""" #??# #####+#########???? | | ????# ?#####! R" #??# ## #???????? | | ????######?????# """ #??# ## """ #???????? | | ???????????????# #??# ## """ #???????? | | ???????????????########??# ## """ #???????? | | ?????????????????????????# ## #???????? | | ????####?????????????????# ## """ #????#### | | ???! ######################= """ #????# | | ???! =!+%%""" #????# | | ???! g ####### #????# | | ???! g @#???############????# | | ???] #############+###### #??????# | | ???? #??????????????# ##! """ #??????# | | ???????????????????## """"" ## """ #??????# | | ???????????????????## ! =T"" ## """ #??????# | | ???????????????????## = ! ## #??????# | | ???????????????????##!%=!= ## "" #??????#### | | ???????????????????## == ## T" #?????????? | | ???????????????????## ## "" #?????????? | | ???????????????????## ## #?????????? | | ????????????????????# =! ######+####??????#### | | ????????????????????####+######## #???#??""" | | ??????????????????????# =%! #???# """"" | | ??????????????????##### [ #???# """"" | | ??????????????????# #???# """"" | | ??????????????????# %########+## #???# """ | | ??????????????????# ## ## ##???# | | ??????????????????#===## """"" ## #????# | | ??????????????????#!!=## """"" ## #????# | | ??????????????????#!! ## """"" ## < #????# | | ??????????????????###### """"" ## #????# | | ???????????????????????# """"" ######????#! | | ???????????????????????# """"" #?????????######## | | ???????????????????????# """"" #????????????????? | | ???????????????????????# #????????????????? | +----------------------------------------------------+ Best States ------------- Heat Dissipation 25 Energy Generation 10 Energy Capacity 250 Matter Stores 300 Matter Capacity 300 Sight Range 16 Terrain Scan Density 10 Evasion (%) 44 Item Schematics ----------------- None Robot Schematics ------------------ None Fabricated ------------ Nothing Alien Tech Used ----------------- None Achievements -------------- None Challenges ------------ None Game ------ Seed NeutronSpectralBoomstick Manual? 0 Play Time 00:25:41 Cumulative 22.4 hours Start 2020.10.20 @ 09:49:26 End 2020.10.20 @ 11:49:54 Sessions 1 Manual Loads 0 Difficulty Rogue Special Mode None Game No. 15 Rogue 15 Adventurer 0 Explorer 0 Win Type - Total 0 Types 0/0/0/0/0/0/0/0/0 Lore% 7 Gallery% 18 Achievement% 17 Wizard Run 0 Options --------- ASCII 0 Keyboard 0 Movement Numpad Keybinds 0 Fullscreen 1 Font 18/SmallcapsGlow Map View 76x50 Tactical HUD 1 Map Filters NONE Filters NONE Steam 1 RUN: 461a3315-fe9c-427f-bb77-a44357fb2174